{"text_format":"1","workbook":"xlsx","n_sheets":3,"sheets":["WS5016","Example","Data"],"not_rendered":{"charts":2,"images":0,"macros":0,"external_links":0,"defined_names":2,"comments":0,"pivot_tables":0},"unopened":[],"bounds":{"document_bytes":16777216,"sheet_cells":100000,"rows_first":2000,"rows_last":500,"rows_between":2000,"halvings":0,"cell_chars":16384,"cell_head_chars":4096},"cells_cut":0,"cells_raw":0,"read":"whole","date_system":"1904"}

{"sheet":"WS5016","index":0,"n_rows":32,"n_cols":30,"rows_kept":32,"cut":false,"hidden":false,"merged":[]}
[null,"PROJECT DESCRIPTION",null,null,null,null,null,null,null,null,null,null,null,null,null,null,null,null,null,null,null,null,null,null,null,null,{"$f":"\"\"","v":""}]
[null,null,null,null,null,null,null,null,null,null,null,null,null,null,null,null,null,null,null,null,null,null,null,null,null,null,{"$f":"\"\"","v":""}]
[null,null,null,null,null,null,null,null,null,null,null,null,null,null,null,null,null,null,null,null,null,null,null,null,null,null,{"$f":"\"\"","v":""}]
[null,null,null,null,null,null,null,null,null,null,null,null,null,null,null,null,null,null,null,null,null,null,null,null,null,null,{"$f":"\"\"","v":""},null,null,"Tested By:"]
[null,null,null,null,null,null,null,null,null,null,null,null,null,null,null,null,null,null,null,null,null,null,null,null,null,null,{"$f":"\"\"","v":""}]
[]
[]
[]
[]
[]
[]
[]
[]
[]
[]
[]
[]
[]
[]
[]
[]
[]
[null,"TEST NUMBER"]
[null,"        Quality Control (Qc)","        Running Average of 4","        Verification  (V)","        Non-Rndm Process Cntrl  (PC)","        Independent Assurance (IAP)","Comments / Adjustments"]
[null,"Type of Test"]
[null,"Air Content"]
[null,"PCC Temperature"]
[null,"Lot-Sublot"]
[null,"Station"]
[null,"Date"]
[null,"Time"]
[null,"Batch Number"]

{"sheet":"Example","index":1,"n_rows":32,"n_cols":46,"rows_kept":32,"cut":false,"hidden":false,"merged":[]}
[null,"PROJECT DESCRIPTION",null,null,null,null,null,null,null,null,null,null,null,null,null,null,null,null,null,null,null,null,null,null,null,null,{"$f":"\"\"","v":""}]
[null,null,null,null,"1530-08-72",null,null,null,null,null,null,null,null,null,null,null,null,null,970221990,null,null,null,null,null,null,null,{"$f":"\"\"","v":""}]
[null,null,null,null,"STH 15",null,null,null,null,null,null,null,null,null,null,null,null,null,"Dane",null,null,null,null,null,null,null,{"$f":"\"\"","v":""}]
[null,null,null,null,"CTH A - CTH B",null,null,null,null,null,null,null,null,null,null,null,null,null,null,null,null,null,null,null,null,null,{"$f":"\"\"","v":""},null,null,"Tested By:",null,null,"XYZ Testing Service"]
[null,null,null,null,"XYZ Construction Company",null,null,null,null,null,null,null,null,null,null,null,null,null,null,null,null,null,null,null,null,null,{"$f":"\"\"","v":""}]
[]
[]
[]
[]
[]
[]
[]
[]
[]
[]
[]
[]
[]
[]
[]
[]
[]
[null,"TEST NUMBER",null,null,null,null,null,1,null,2,null,3,null,4,null,5,null,6,null,7,null,8,null,9,null,10,null,11,null,12,null,13,null,14,null,15,null,16,null,17,null,18,null,19,null,20]
[null,"        Quality Control (Qc)","        Running Average of 4","        Verification  (V)","        Non-Rndm Process Cntrl  (PC)","        Independent Assurance (IAP)","Comments / Adjustments","Startup Monday 6/9/97","Increased AE dosage to 7 oz/CY",null,null,null,null,null,null,null,null,null,null,null,null,null,"Increased testing frequency",null,"Increased AE dosage to 7.5 oz/CY",null,null,"Material out of Spec",null,"Material out of Spec","Increased AE dosage to 8 oz/CY","Material out of Spec","Increased AE dosage to 9 oz/CY","Material out of Spec","Increased AE dosage to 10 oz/CY","Startup Tuesday 6/10/97","Return to standard frequency"]
[null,"Type of Test",null,null,null,null,null,"Qc",null,"Qc",null,"Qc",null,"Qc",null,"Qc",null,"V",null,"Qc",null,"Qc",null,"Qc",null,"Qc",null,"Qc",null,"PC",null,"PC",null,"PC",null,"Qc",null,"Qc",null,"V",null,"Qc",null,"Qc",null,"Qc"]
[null,"Air Content",null,null,null,null,null,6.5,null,7,null,7.2,null,7.5,null,6.2,null,6.5,null,6.3,null,5.8,null,6,null,5.6,null,5.4,null,5.2,null,5,null,5.3,null,6.4,null,6.5,null,6.8,null,7.5,null,7.1,null,6.9]
[null,"PCC Temperature",null,null,null,null,null,70,null,72,null,73,null,75,null,78,null,80,null,84,null,85,null,86,null,85,null,83,null,82,null,82,null,80,null,73,null,72,null,75,null,76,null,78,null,78]
[null,"Lot-Sublot",null,null,null,null,null," 1-1",null," 1-2",null," 1-3",null," 1-4",null," 1-5",null,null,null," 1-6",null," 1-7",null," 1-8",null," 1-9",null," 1-10",null,null,null,null,null,null,null," 2-1",null," 2-2",null,null,null," 2-3",null," 2-4",null," 2-5"]
[null,"Station",null,null,null,null,null,"101+14",null,"109+67",null,"115+15",null,"124+68",null,"129+44",null,"131+50",null,"134+70",null,"142+16",null,"144+10",null,"146+85",null,"149+10",null,"150+25",null,"150+85",null,"151+20",null,"151+85",null,"161+20",null,"169+74",null,"177+41",null,"180+25",null,"183+66"]
[null,"Date",null,null,null,null,null,"1997-06-09",null,"1997-06-09",null,"1997-06-09",null,"1997-06-09",null,"1997-06-09",null,"1997-06-09",null,"1997-06-09",null,"1997-06-09",null,"1997-06-09",null,"1997-06-09",null,"1997-06-09",null,"1997-06-09",null,"1997-06-09",null,"1997-06-09",null,"1997-06-10",null,"1997-06-10",null,"1997-06-10",null,"1997-06-10",null,"1997-06-10",null,"1997-06-10"]
[null,"Time",null,null,null,null,null,"7:13",null,"8:52",null,"9:55",null,"11:46",null,"12:41",null,"13:00:00",null,"13:42",null,"15:18:00",null,"15:39:00",null,"16:00:00",null,"16:39",null,"16:54:00",null,"17:10:00",null,"17:25:00",null,"07:30:00",null,"07:43:00",null,"7:27",null,"9:56",null,"10:08:00",null,"10:47:00"]
[null,"Batch Number",null,null,null,null,null,2,null,60,null,94,null,152,null,182,null,214,null,260,null,309,null,320,null,369,null,430,null,478,null,516,null,556,null,3,null,43,null,65,null,106,null,137,null,168]

{"sheet":"Data","index":2,"n_rows":24,"n_cols":9,"rows_kept":24,"cut":false,"hidden":false,"merged":[]}
[]
[null,null,"RUNNING",null,"CONTRACTOR ",null,"LOWER","LOWER","UPPER"]
["TEST","CONTRACTOR ","AVERAGE","VERIFICATION","PROCESS","TEST","CONTROL","WARNING","CONTROL"]
["NUMBER","ACCEPTANCE","OF 4",null,"CONTROL","NUMBER","LIMIT","LIMIT","LIMIT"]
[1,6.5,null,null,null,0,5.5,6,8.5]
[2,7,null,null,null,1000,5.5,6,8.5]
[3,7.2]
[4,7.5,{"$f":"AVERAGE(B5:B8)","v":7.05}]
[5,6.2,{"$f":"AVERAGE(B6:B9)","v":6.9749999999999996}]
[6,null,null,6.5]
[7,6.3,{"$f":"AVERAGE(B7:B11)","v":6.8}]
[8,5.8,{"$f":"AVERAGE(B8:B12)","v":6.45}]
[9,6,{"$f":"AVERAGE(B9:B13)","v":6.0750000000000002}]
[10,5.6,{"$f":"AVERAGE(B11:B14)","v":5.9250000000000007}]
[11,5.4,{"$f":"AVERAGE(B12:B15)","v":5.6999999999999993}]
[12,null,null,null,5.2]
[13,null,null,null,5]
[14,null,null,null,5.3]
[15,6.4,{"$f":"AVERAGE(B13:B19)","v":5.85}]
[16,6.5,{"$f":"AVERAGE(B14:B20)","v":5.9749999999999996}]
[17,null,null,6.8]
[18,7.5,{"$f":"AVERAGE(B15:B22)","v":6.45}]
[19,7.1,{"$f":"AVERAGE(B19:B23)","v":6.875}]
[20,6.9,{"$f":"AVERAGE(B20:B24)","v":7}]